lending/lending_fUSD_20250316
["ID","MTS","AMOUNT","RATE_DAILY","PERIOD"]
[356260571,1742151040225,-997.29557935,0.0001,2]
[356260572,1742151040333,-200822.7786938,0.0001,2]
[356260573,1742151040655,-157.01213013,0.0001,2]
[356260596,1742151042999,-7295.34874343,0.0001,2]
[356260597,1742151043010,-10632.41659197,0.0001,2]
[356260598,1742151044365,-5766.17478965,0.0001,2]
[356260599,1742151044381,-1051.91736548,0.0001,2]
[356260600,1742151044392,-2745.4001,0.0001,2]
[356260601,1742151044404,-6130.49995,0.0001,2]
[356260602,1742151044420,-422.54166336,0.0001,2]
[356260610,1742151054702,603.56,8.353e-05,2]
[356260611,1742151055930,150.0,0.0001027,7]
[356260612,1742151103820,-300.0,9.999e-05,2]
[356260613,1742151103842,-1976.2,9.999e-05,2]
[356260614,1742151103865,-5455690.30887903,0.0001,2]
[356260615,1742151103886,-478.56699402,0.0001,2]
[356260616,1742151103908,-295998.24418928,0.0001,2]
[356260617,1742151103929,-681.1743159,0.0001,2]
[356260618,1742151103952,-200.0,0.0001,2]
[356260619,1742151103973,-1636.11618,0.0001,2]
[356260620,1742151103999,-15450.61037797,0.0001,2]
[356260621,1742151104021,-255.9158358,0.0001,2]
[356260622,1742151104042,-337.26005715,0.0001,2]
[356260623,1742151104107,-249.77525192,0.000101,2]
[356260624,1742151104129,-659.83713827,0.00010136,2]
[356260625,1742151104153,-254.13,0.00010258,2]
[356260626,1742151104176,-1976.2,0.00010273,2]
[356260627,1742151104200,-163.65,0.00010323,2]
[356260628,1742151104220,-23900.0,0.0001034,2]
[356260629,1742151104241,-433.921571,0.00010363,2]
[356260630,1742151104262,-1976.2,0.00010547,2]
[356260631,1742151104287,-603.56,0.00010616,2]
[356260632,1742151104310,-860.07,0.00010619,2]
[356260633,1742151104332,-257.90916097,0.000107,2]
[356260634,1742151104354,-150.0,0.00010718,2]
[356260635,1742151104375,-988.02950215,0.000108,2]
[356260636,1742151104398,-157.35,0.00010818,2]
[356260637,1742151104420,-1976.2,0.00010821,2]
[356260638,1742151104446,-1000.0,0.0001087,2]
[356260639,1742151104468,-353.41959934,0.000109,2]
[356260640,1742151104489,-150.0,0.00010999,2]
[356260641,1742151104511,-150.0,0.00010999,2]
[356260642,1742151104532,-500.0,0.00010999,2]
[356260643,1742151104553,-500.0,0.00010999,2]
[356260644,1742151104574,-420.0,0.00010999,2]
[356260645,1742151110798,637.74113521,0.0001,2]
[356260646,1742151181039,-204.10809261,0.00011073,2]
[356260647,1742151181062,-158.35296052,0.00011073,2]
[356260648,1742151181084,-153.45448645,0.00011073,2]
[356260649,1742151181107,-150.0,0.00011084,2]
[356260650,1742151181138,-500.0,0.00011084,2]
[356260651,1742151181164,-1976.2,0.00011095,2]
[356260652,1742151181190,-160.16931033,0.00011098,2]
[356260653,1742151181216,-247.78458994,0.00011098,2]
[356260654,1742151181239,-500.0,0.00011098,2]
[356260655,1742151181264,-500.0,0.00011098,2]
[356260656,1742151181288,-500.0,0.00011098,2]
[356260657,1742151181311,-500.0,0.00011098,2]
[356260658,1742151181336,-261.7098632,0.00011098,2]
[356260659,1742151181359,-460074.88876071,0.00011099,2]
[356260660,1742151181383,-150.0,0.00011119,2]
[356260661,1742151181606,-500.0,0.00011119,2]
[356260662,1742151181629,-35023.04940243,0.00011133,2]
[356260663,1742151181650,-1976.2,0.00011369,2]
[356260664,1742151181670,-2751.0,0.00011507,2]
[356260665,1742151181691,-1976.2,0.00011643,2]
[356260666,1742151181712,-178.09683232,0.000119,2]
[356260667,1742151181733,-1976.2,0.00011917,2]
[356260668,1742151181757,-860.07,0.00011946,2]
[356260669,1742151181778,-250.0,0.00011973,2]
[356260670,1742151181800,-151.81531041,0.00012,2]
[356260671,1742151181821,-150.0,0.00012003,2]
[356260672,1742151181842,-150.0,0.0001218,2]
[356260673,1742151181865,-500.0,0.0001218,2]
[356260674,1742151181887,-1976.2,0.00012191,2]
[356260675,1742151181908,-1000.0,0.00012228,2]
[356260676,1742151181932,-1976.2,0.00012465,2]
[356260677,1742151181954,-295.42032159,0.000125,2]
[356260678,1742151181975,-1976.2,0.00012739,2]
[356260679,1742151181997,-603.56,0.0001288,2]
[356260680,1742151182020,-4251.10742581,0.00013,2]
[356260681,1742151182041,-3046.09450174,0.00013,2]
[356260682,1742151182063,-218.57,0.00013,2]
[356260683,1742151182082,-218.57,0.00013,2]
[356260684,1742151182104,-218.57,0.00013,2]
[356260685,1742151182127,-218.57,0.00013,2]
[356260686,1742151182150,-218.57,0.00013,2]
[356260687,1742151182172,-218.57,0.00013,2]
[356260688,1742151182192,-218.57,0.00013,2]
[356260689,1742151182213,-218.57,0.00013,2]
[356260690,1742151182233,-218.57,0.00013,2]
[356260691,1742151182254,-218.57,0.00013,2]
[356260692,1742151182275,-218.57,0.00013,2]
[356260693,1742151182295,-218.57,0.00013,2]
[356260694,1742151182315,-218.57,0.00013,2]
[356260695,1742151182336,-218.57,0.00013,2]
[356260696,1742151182356,-218.57,0.00013,2]
[356260697,1742151182376,-218.57,0.00013,2]
[356260698,1742151182397,-218.57,0.00013,2]
[356260699,1742151182418,-218.57,0.00013,2]
[356260700,1742151182438,-218.57,0.00013,2]
[356260701,1742151182458,-218.57,0.00013,2]
[356260702,1742151182478,-218.57,0.00013,2]
[356260703,1742151182498,-218.57,0.00013,2]
[356260704,1742151182518,-218.57,0.00013,2]
[356260705,1742151182538,-218.57,0.00013,2]
[356260706,1742151182558,-218.57,0.00013,2]
[356260707,1742151182578,-218.57,0.00013,2]
[356260708,1742151182598,-218.57,0.00013,2]
[356260709,1742151182618,-218.57,0.00013,2]
[356260710,1742151182639,-218.57,0.00013,2]
[356260711,1742151182660,-218.57,0.00013,2]
[356260712,1742151182680,-218.57,0.00013,2]
[356260713,1742151182714,-218.57,0.00013,2]
[356260714,1742151182738,-218.57,0.00013,2]
[356260715,1742151182760,-218.57,0.00013,2]
[356260716,1742151182783,-218.57,0.00013,2]
[356260717,1742151182802,-218.57,0.00013,2]
[356260718,1742151182821,-218.57,0.00013,2]
[356260719,1742151182843,-218.57,0.00013,2]
[356260720,1742151182866,-218.57,0.00013,2]
[356260721,1742151182889,-218.57,0.00013,2]
[356260722,1742151182914,-218.57,0.00013,2]
[356260723,1742151182939,-218.57,0.00013,2]
[356260724,1742151182963,-218.57,0.00013,2]
[356260725,1742151182985,-218.57,0.00013,2]
[356260726,1742151183007,-218.57,0.00013,2]
[356260727,1742151183031,-218.57,0.00013,2]
[356260728,1742151183054,-218.57,0.00013,2]
[356260729,1742151183078,-218.57,0.00013,2]
[356260730,1742151183101,-218.57,0.00013,2]
[356260731,1742151183126,-218.57,0.00013,2]
[356260732,1742151183151,-218.57,0.00013,2]
[356260733,1742151183175,-218.57,0.00013,2]
[356260734,1742151183198,-218.57,0.00013,2]
[356260735,1742151183224,-218.57,0.00013,2]
[356260736,1742151183246,-218.57,0.00013,2]
[356260737,1742151183270,-218.57,0.00013,2]
[356260738,1742151183293,-218.57,0.00013,2]
[356260739,1742151183316,-218.57,0.00013,2]
[356260740,1742151183338,-218.57,0.00013,2]
[356260741,1742151183360,-218.57,0.00013,2]
[356260742,1742151183384,-218.57,0.00013,2]
[356260743,1742151183407,-218.57,0.00013,2]
[356260744,1742151183431,-218.57,0.00013,2]
[356260745,1742151183454,-1976.2,0.00013013,2]
[356260746,1742151183478,-5133.14812364,0.0001305,2]
[356260747,1742151183503,-860.07,0.00013273,2]
[356260748,1742151183526,-1976.2,0.00013287,2]
[356260749,1742151183550,-48377.83432074,0.00013368,2]
[356260750,1742151183573,-1000.0,0.000135,2]
[356260751,1742151183595,-1976.2,0.00013561,2]
[356260752,1742151183618,-1000.0,0.00013587,2]
[356260753,1742151183641,-218.57,0.00013689,2]
[356260754,1742151183663,-218.57,0.00013689,2]
[356260755,1742151183685,-27451.07,0.00013699,2]
[356260756,1742151183707,-7618.12,0.00013699,2]
[356260757,1742151183728,-500.0,0.00013699,2]
[356260758,1742151183750,-15388.16,0.00013699,2]
[356260759,1742151183772,-30880.78,0.00013699,2]
[356260760,1742151183794,-200.0,0.00013699,2]
[356260761,1742151183815,-213.15944391,0.00013699,2]
[356260762,1742151183836,-500.0,0.00013699,2]
[356260763,1742151183858,-317.22923162,0.00013699,2]
[356260764,1742151183881,-160.98269994,0.00013699,2]
[356260765,1742151183902,-500.0,0.00013699,2]
[356260766,1742151183922,-561.47824386,0.00013699,2]
[356260767,1742151183944,-645.56924642,0.00013699,2]
[356260768,1742151183966,-150.99,0.00013699,2]
[356260769,1742151183988,-314.04,0.00013699,2]
[356260770,1742151184010,-500.0,0.00013699,2]
[356260771,1742151184032,-452.66042233,0.00013699,2]
[356260772,1742151184054,-152.53714067,0.00013699,2]
[356260773,1742151184075,-151.37482498,0.00013699,2]
[356260774,1742151184097,-500.0,0.00013699,2]
[356260775,1742151184118,-151.28471829,0.00013699,2]
[356260776,1742151184144,-500.0,0.00013699,2]
[356260777,1742151184166,-500.0,0.00013699,2]
[356260778,1742151184190,-500.0,0.00013699,2]
[356260779,1742151184213,-500.0,0.00013699,2]
[356260780,1742151184235,-500.0,0.00013699,2]
[356260781,1742151184259,-500.0,0.00013699,2]
[356260782,1742151184282,-500.0,0.00013699,2]
[356260783,1742151184305,-500.0,0.00013699,2]
[356260784,1742151184327,-500.0,0.00013699,2]
[356260785,1742151184351,-500.0,0.00013699,2]
[356260786,1742151184374,-500.0,0.00013699,2]
[356260787,1742151184396,-500.0,0.00013699,2]
[356260788,1742151184419,-500.0,0.00013699,2]
[356260789,1742151184441,-500.0,0.00013699,2]
[356260790,1742151184463,-500.0,0.00013699,2]
[356260791,1742151184485,-500.0,0.00013699,2]
[356260792,1742151184508,-500.0,0.00013699,2]
[356260793,1742151184529,-500.0,0.00013699,2]
[356260794,1742151184551,-500.0,0.00013699,2]
[356260795,1742151184573,-500.0,0.00013699,2]
[356260796,1742151184595,-500.0,0.00013699,2]
[356260797,1742151184616,-500.0,0.00013699,2]
[356260798,1742151184638,-500.0,0.00013699,2]
[356260799,1742151184658,-500.0,0.00013699,2]
[356260800,1742151184679,-500.0,0.00013699,2]
[356260801,1742151184700,-500.0,0.00013699,2]
[356260802,1742151184721,-500.0,0.00013699,2]
[356260803,1742151184742,-500.0,0.00013699,2]
[356260804,1742151184763,-500.0,0.00013699,2]
[356260805,1742151184938,-500.0,0.00013699,2]
[356260806,1742151184960,-500.0,0.00013699,2]
[356260807,1742151184982,-500.0,0.00013699,2]
[356260808,1742151185005,-500.0,0.00013699,2]
[356260809,1742151185027,-500.0,0.00013699,2]
[356260810,1742151185050,-500.0,0.00013699,2]
[356260811,1742151185072,-500.0,0.00013699,2]
[356260812,1742151185095,-500.0,0.00013699,2]
[356260813,1742151185116,-500.0,0.00013699,2]
[356260814,1742151185142,-500.0,0.00013699,2]
[356260815,1742151185162,-333.2339932,0.00013699,2]
[356260816,1742151185184,-500.0,0.00013699,2]
[356260817,1742151185205,-500.0,0.00013699,2]
[356260818,1742151185227,-500.0,0.00013699,2]
[356260819,1742151185249,-500.0,0.00013699,2]
[356260820,1742151185271,-500.0,0.00013699,2]
[356260821,1742151185293,-500.0,0.00013699,2]
[356260822,1742151185315,-500.0,0.00013699,2]
[356260823,1742151185338,-500.0,0.00013699,2]
[356260824,1742151185360,-500.0,0.00013699,2]
[356260825,1742151185383,-500.0,0.00013699,2]
[356260826,1742151185405,-500.0,0.00013699,2]
[356260827,1742151185428,-500.0,0.00013699,2]
[356260828,1742151185450,-500.0,0.00013699,2]
[356260829,1742151185472,-500.0,0.00013699,2]
[356260830,1742151185493,-500.0,0.00013699,2]
[356260831,1742151185515,-500.0,0.00013699,2]
[356260832,1742151185537,-500.0,0.00013699,2]
[356260833,1742151185559,-500.0,0.00013699,2]
[356260834,1742151185580,-500.0,0.00013699,2]
[356260835,1742151185601,-500.0,0.00013699,2]
[356260836,1742151185622,-500.0,0.00013699,2]
[356260837,1742151185643,-500.0,0.00013699,2]
[356260838,1742151185665,-500.0,0.00013699,2]
[356260839,1742151185686,-250.0,0.00013699,2]
[356260840,1742151185708,-500.0,0.000137,2]
[356260841,1742151185729,-1200.0,0.000137,2]
[356260842,1742151185751,-1976.2,0.00013835,2]
[356260843,1742151185772,-32433.28507759,0.00014,2]
[356260844,1742151185792,-3980.65279136,0.00014,2]
[356260845,1742151185812,-1976.2,0.00014109,2]
[356260846,1742151185833,-254.13,0.00014361,2]
[356260847,1742151185853,-1976.2,0.00014383,2]
[356260848,1742151185874,-7618.12,0.00014384,2]
[356260849,1742151185895,-9897.02030157,0.0001439,2]
[356260850,1742151185917,-860.07,0.00014601,2]
[356260851,1742151185938,-337.26005713,0.00014614,2]
[356260852,1742151185959,-1976.2,0.00014657,2]
[356260853,1742151185981,-35023.04940234,0.00014663,2]
[356260854,1742151186003,-1976.2,0.00014931,2]
[356260855,1742151186025,-1000.0,0.00014946,2]
[356260856,1742151186046,-218.57,0.0001499,2]
[356260857,1742151186067,-1965.62756717,0.00015,2]
[356260858,1742151186088,-7651.14756895,0.00015,2]
[356260859,1742151186109,-18194.06756797,0.00015,2]
[356260860,1742151186134,-1636.11619,0.00015,2]
[356260861,1742151186154,-7618.12,0.00015068,2]
[356260862,1742151186176,-300.0,0.00015068,2]
[356260863,1742151186198,-603.56,0.00015144,2]
[356260864,1742151186220,-1976.2,0.00015205,2]
[356260865,1742151186241,-1517.64,0.000153,2]
[356260866,1742151186261,-16021.39439457,0.000154,2]
[356260867,1742151186282,-487.22187376,0.000154,2]
[356260868,1742151186305,-681.17431587,0.00015409,2]
[356260869,1742151186326,-1976.2,0.00015479,2]
[356260870,1742151186348,-1976.2,0.00015753,2]
[356260871,1742151186369,-7618.12,0.00015753,2]
[356260872,1742151186391,-860.07,0.00015928,2]
[356260873,1742151186412,-4531.45335565,0.00016,2]
[356260874,1742151186434,-1976.2,0.00016027,2]
[356260875,1742151186455,-1976.28393964,0.00016301,2]
[356260876,1742151186477,-1000.0,0.00016305,2]
[356260877,1742151186498,-200.0,0.0001634,2]
[356260878,1742151186520,-11947.65,0.00016411,2]
[356260879,1742151186542,-218.57,0.00016428,2]
[356260880,1742151186564,-7618.12,0.00016438,2]
[356260881,1742151186585,-202.26,0.00016438,2]
[356260882,1742151186606,-300.0,0.00016438,2]
[356260883,1742151186627,-221.05,0.00016712,2]
[356260884,1742151186648,-74813.57887596,0.0001688,2]
[356260885,1742151186670,-603.56,0.00017408,2]
[356260886,1742151186691,-7407.94,0.00017728,2]
[356260887,1742151186711,-28326.01,0.00017728,2]
[356260888,1742151186731,-1136.9,0.00017728,2]
[356260889,1742151186753,-19999.99,0.00017728,2]
[356260890,1742151186774,-600.0,0.00017808,2]
[356260891,1742151186795,-1140.62118798,0.00018,2]
[356260892,1742151186815,-200.0,0.00018082,2]
[356260893,1742151186835,-1705.75187199,0.000181,2]
[356260894,1742151186856,-32855.19920483,0.00018192,2]
[356260895,1742151208036,-9562.0,0.0001089,2]
[356260896,1742151268432,-150.0,0.00011979,2]
[356260897,1742151268459,-500.0,0.00011979,2]
[356260898,1742151268487,-150.0,0.00012128,2]
[356260899,1742151268515,-500.0,0.00012128,2]
[356260900,1742151268541,-1060.56488955,0.00013367,2]
[356260901,1742151268570,-150.0,0.00015788,2]
[356260902,1742151268597,-500.0,0.00015788,2]
[356260903,1742151268622,-2090.53122366,0.0001802,2]
[356260904,1742151268648,-171.20497308,0.00018192,20]
[356260905,1742151268674,-2167.85019751,0.00018192,2]
[356260906,1742151268699,-3431.94925137,0.000183,2]
[356260907,1742151268727,-300.0,0.00018345,2]
[356260908,1742151268753,-450.0,0.00018345,2]
[356260909,1742151268779,-218.57,0.00018346,2]
[356260910,1742151268806,-38082.74421293,0.00018346,2]
[356260911,1742151268831,-82874.69,0.00018356,2]
[356260912,1742151268858,-218.57,0.00018523,2]
[356260913,1742151268884,-153.87,0.000186,2]
[356260914,1742151268911,-218.57,0.0001889,2]
[356260915,1742151268936,-102014.62221557,0.000189,2]
[356260916,1742151268962,-309.24214937,0.000189,2]
[356260917,1742151268988,-218.57,0.0001899,2]
[356260918,1742151269015,-77428.44288691,0.00019,2]
[356260919,1742151269041,-961.61,0.00019,2]
[356260920,1742151269067,-250.0,0.00019,2]
[356260921,1742151269094,-893.84681126,0.00019,2]
[356260922,1742151269119,-1000.0,0.0001902,2]
[356260923,1742151269148,-3241.74,0.00019178,2]
[356260924,1742151269177,-500.14382252,0.00019178,2]
[356260925,1742151269204,-250.0,0.000192,2]
[356260926,1742151269230,-600.0,0.000192,2]
[356260927,1742151269256,-511.0,0.000192,2]
[356260928,1742151269282,-339.98579999,0.00019572,2]
[356260929,1742151269309,-218.57,0.0001959,2]
[356260930,1742151269340,-218.57,0.0001959,2]
[356260931,1742151269367,-164570.12209464,0.000196,2]
[356260932,1742151269394,-603.56,0.00019672,2]
[356260933,1742151269420,-2000.0,0.0002,4]
[356260934,1742151269447,-420.0,0.0002001,2]
[356260935,1742151269475,-582.0509368,0.000208,2]
[356260936,1742151269503,-582.05093653,0.000208,2]
[356260937,1742151269534,-582.05093653,0.000208,2]
[356260938,1742151269561,-582.05093653,0.000208,2]
[356260939,1742151269589,-582.05093653,0.000208,2]
[356260940,1742151269616,-582.05093653,0.000208,2]
[356260941,1742151269643,-681.17431587,0.00020918,2]
[356260942,1742151269672,-300.0,0.00021,2]
[356260943,1742151274054,168.60121968,0.00018999,2]
[356260944,1742151274097,315.06339168,0.00018999,2]
[356260945,1742151275948,251.30109591,0.00018355,2]
[356260946,1742151275976,500.0,0.00018355,2]
[356260947,1742151276004,408.32339932,0.00018355,2]
[356260948,1742151276030,500.0,0.00018355,2]
[356260949,1742151276058,500.0,0.00018355,2]
[356260950,1742151276131,500.0,0.00018355,2]
[356260951,1742151276173,500.0,0.00018355,2]
[356260952,1742151276234,500.0,0.00018355,2]
[356260953,1742151276819,1090.74412,0.00021,26]
[356260955,1742151350783,-582.05093653,0.00021555,2]
[356260956,1742151350811,-300.0,0.00021721,2]
[356260957,1742151350839,-35023.04940234,0.00021722,2]
[356260958,1742151350867,-150.0,0.00021917,2]
[356260959,1742151350895,-603.56,0.00021936,2]
[356260960,1742151350923,-309.24214936,0.00022329,2]
[356260961,1742151350949,-3201.3665351,0.00022495,2]
[356260962,1742151350976,-1162.70336709,0.00022687,2]
[356260963,1742151351003,-582.05093653,0.00022831,3]
[356260964,1742151351032,-350.0,0.00023,2]
[356260965,1742151351059,-150.0,0.00023287,2]
[356260966,1742151351086,-339.98579999,0.0002346,2]
[356260967,1742151351113,-420.0,0.0002361,2]
[356260968,1742151351152,-3000.0,0.00023709,2]
[356260969,1742151351180,-500.0,0.00023717,2]
[356260970,1742151351211,-229.22492319,0.00023717,2]
[356260971,1742151351239,-2000.0,0.0002375,4]
[356260972,1742151351268,-582.05093653,0.00024107,3]
[356260973,1742151351298,-603.56,0.000242,2]
[356260974,1742151351326,-150.0,0.00024657,2]
[356260975,1742151351353,-255.19,0.00024658,4]
[356260976,1742151351382,-250.20062118,0.000247,2]
[356260977,1742151351409,-600.59334017,0.000247,2]
[356260978,1742151351436,-511.07625496,0.000247,2]
[356260979,1742151351463,-893.6658609,0.00024725,2]
[356260980,1742151351490,-500.0,0.00024773,2]
[356260981,1742151351517,-218.57,0.0002479,2]
[356260982,1742151351545,-218.57,0.0002479,2]
[356260983,1742151351574,-35020.007713,0.000248,2]
[356260984,1742151351602,-218.57,0.0002489,2]
[356260985,1742151351630,-1346.1433692,0.000249,2]
[356260986,1742151351657,-400.0,0.00025,2]
[356260987,1742151351684,-23751.08419657,0.00025243,2]
[356260988,1742151351716,-35023.04940234,0.00025252,2]
[356260989,1742151351741,-3252.69578881,0.00025343,2]
[356260990,1742151351769,-582.05093653,0.00025383,4]
[356260991,1742151351798,-587.0,0.00025664,2]
[356260992,1742151351824,-309.24214936,0.00025757,2]
[356260993,1742151351851,-1384.96,0.00025888,2]
[356260994,1742151351879,-1090.74412,0.00026,26]
[356260995,1742151351907,-150.0,0.00026027,2]
[356260996,1742151351935,-681.17431587,0.00026427,2]
[356260997,1742151351963,-183.89,0.00026456,2]
[356260998,1742151351991,-603.56,0.00026464,2]
[356260999,1742151352019,-582.05093653,0.00026659,4]
[356261000,1742151352046,-156.48,0.00026849,2]
[356261001,1742151352077,-164.89,0.00026849,2]
[356261002,1742151352109,-1148.29363079,0.00027,2]
[356261003,1742151352137,-450.0,0.00027,2]
[356261004,1742151352165,-339.98579999,0.00027348,2]
[356261005,1742151352196,-150.0,0.00027397,2]
[356261006,1742151352229,-2000.0,0.000275,4]
[356261007,1742151352259,-823.0,0.00027896,2]
[356261008,1742151352288,-582.05093653,0.00027934,4]
[356261009,1742151352317,-603.56,0.00028728,2]
[356261010,1742151352345,-150.0,0.00028767,2]
[356261011,1742151352374,-500.0,0.00028773,5]
[356261012,1742151352402,-35023.04940234,0.00028781,2]
[356261013,1742151352430,-500.0,0.00029,2]
[356261014,1742151352458,-514.297339,0.000291,2]
[356261015,1742151352490,-309.24214936,0.00029186,2]
[356261016,1742151352518,-500.54250312,0.00029196,5]
[356261017,1742151352546,-582.05093653,0.0002921,5]
[356261018,1742151352574,-900.79117884,0.00029399,2]
[356261019,1742151352601,-435.93042507,0.0003,20]
[356261020,1742151352628,-300.0,0.0003,2]
[356261021,1742151352656,-300.0,0.0003,2]
[356261022,1742151352683,-339.36889613,0.0003,2]
[356261023,1742151352709,-500.0,0.000301,2]
[356261024,1742151352736,-150.0,0.00030136,2]
[356261025,1742151352763,-150.0,0.00030137,2]
[356261026,1742151352789,-1000.0,0.00030252,5]
[356261027,1742151352817,-1152.0,0.00030322,2]
[356261028,1742151352844,-218.57,0.00030389,2]
[356261029,1742151352872,-582.05093653,0.00030486,5]
[356261030,1742151352899,-603.56,0.00030991,2]
[356261031,1742151352927,-1090.74413,0.00031,26]
[356261032,1742151352954,-339.98579999,0.00031236,2]
[356261033,1742151352980,-2000.0,0.0003125,4]
[356261034,1742151353007,-150.0,0.00031506,2]
[356261035,1742151353035,-582.05093653,0.00031762,6]
[356261036,1742151353062,-681.17431587,0.00031935,2]
[356261037,1742151353089,-150.0,0.0003229,2]
[356261038,1742151353119,-35023.04940234,0.00032311,2]
[356261039,1742151353148,-309.24214936,0.00032614,2]
[356261040,1742151353174,-150.0,0.00032876,2]
[356261041,1742151353206,-500.0,0.00032876,120]
[356261042,1742151353233,-688.0,0.0003296,2]
[356261043,1742151356078,150.0,0.00021917,2]
[356261044,1742151356104,150.0,0.00023287,2]
[356261045,1742151356130,150.0,0.00024657,2]
[356261046,1742151356154,150.0,0.00026027,2]
[356261047,1742151356180,150.0,0.00027397,2]
[356261048,1742151356208,150.0,0.00028767,2]
[356261049,1742151356233,263.7,0.00030136,2]
[356261050,1742151361408,150.0,0.00030399,2]
[356261051,1742151361493,150.0,0.00031498,2]
[356261052,1742151361974,500.0,0.00030399,2]
[356261053,1742151362137,500.0,0.00031498,2]
[356261054,1742151364147,229.22492319,0.00028773,5]
[356261055,1742151372538,291.02546841,0.000309,5]
[356261056,1742151372882,291.02546826,0.0003159,6]
[356261057,1742151373222,291.02546826,0.00032279,6]
[356261058,1742151373567,291.02546826,0.00032969,6]
[356261059,1742151386670,-603.56,0.00033255,2]
[356261060,1742151386700,-506.33478123,0.00033424,120]
[356261061,1742151386728,-150.0,0.00033439,2]
[356261062,1742151386754,-500.0,0.00033439,2]
[356261063,1742151386781,-291.02546826,0.00033659,6]
[356261064,1742151386808,-291.02546826,0.00034348,6]
[356261065,1742151386835,-929.0,0.00034396,5]
[356261066,1742151386862,-150.0,0.00034442,2]
[356261067,1742151386889,-150.0,0.00034548,10]
[356261068,1742151386917,-1695.38,0.0003485,40]
[356261069,1742151386945,-9969.43657269,0.00035,2]
[356261070,1742151386973,-2000.0,0.00035,4]
[356261071,1742151387000,-291.02546826,0.00035038,7]
[356261072,1742151387032,-603.56,0.00035519,2]
[356261073,1742151387061,-291.02546826,0.00035728,7]
[356261074,1742151387088,-35023.04940234,0.00035841,2]
[356261075,1742151387116,-300.0,0.00036,2]
[356261076,1742151387145,-1090.74412,0.00036,26]
[356261077,1742151387172,-309.24214936,0.00036043,2]
[356261078,1742151387201,-500.0,0.00036164,2]
[356261079,1742151387231,-291.02546826,0.00036417,7]
[356261080,1742151387259,-1149.05,0.00036479,2]
[356261081,1742151387289,-359.88,0.00036479,2]
[356261082,1742151387316,-442.2,0.00036479,2]
[356261083,1742151387342,-150.0,0.00036595,2]
[356261084,1742151387369,-156.48,0.00036862,2]
[356261085,1742151387395,-321.94776248,0.00036941,17]
[356261086,1742151387422,-291.02546826,0.00037107,7]
[356261087,1742151387450,-681.17431587,0.00037444,2]
[356261088,1742151387477,-603.56,0.00037783,2]
[356261089,1742151387505,-291.02546826,0.00037797,8]
[356261090,1742151387531,-1000.0,0.00037863,2]
[356261091,1742151387558,-2000.0,0.00037987,120]
[356261092,1742151387586,-500.0,0.00038356,15]
[356261093,1742151387614,-500.0,0.00038356,15]
[356261094,1742151387642,-500.0,0.00038356,15]
[356261095,1742151387669,-535.15507426,0.00038356,15]
[356261096,1742151387697,-291.02546826,0.00038486,8]
[356261097,1742151387724,-150.0,0.00038748,2]
[356261098,1742151387750,-2000.0,0.0003875,4]
[356261099,1742151387777,-262.1328,0.00038888,30]
[356261100,1742151387814,-5536.10109654,0.0003901,2]